[Event "*** Titled Tuesday Blitz"]
[Site "Chess.com"]
[Date "2020.04.07"]
[Round "9"]
[White "ersekitamara"]
[Black "Sjakkerntobi"]
[Result "0-1"]
[WhiteElo "1942"]
[BlackElo "2273"]
[TimeControl "180+1"]
[EndTime "14:45:59 PDT"]
[Termination "Sjakkerntobi won by checkmate"]

1. d4 {[%clk 0:03:00.9]} 1... d5 {[%clk 0:02:59.1]} 2. Bf4 {[%clk 0:02:54.9]}
2... Nf6 {[%clk 0:02:58.6]} 3. Nf3 {[%clk 0:02:55.2]} 3... c5 {[%clk 0:02:58.9]}
4. e3 {[%clk 0:02:55.3]} 4... Nc6 {[%clk 0:02:58.4]} 5. c3 {[%clk 0:02:55.4]}
5... e6 {[%clk 0:02:56]} 6. Bd3 {[%clk 0:02:53.6]} 6... Bd6 {[%clk 0:02:56.5]}
7. Bg3 {[%clk 0:02:53.5]} 7... O-O {[%clk 0:02:56.3]} 8. Ne5 {[%clk 0:02:51.2]}
8... Ne7 {[%clk 0:02:53.4]} 9. f4 {[%clk 0:02:50.8]} 9... b6 {[%clk 0:02:52.8]}
10. O-O {[%clk 0:02:50.6]} 10... Bb7 {[%clk 0:02:52.9]} 11. Nd2 {[%clk
0:02:49.1]} 11... Nf5 {[%clk 0:02:51.2]} 12. Bf2 {[%clk 0:02:43.6]} 12... Be7
{[%clk 0:02:51.3]} 13. Qf3 {[%clk 0:02:42]} 13... Nd6 {[%clk 0:02:50.7]} 14. g4
{[%clk 0:02:37.3]} 14... Nfe4 {[%clk 0:02:49.5]} 15. Bxe4 {[%clk 0:02:30.9]}
15... dxe4 {[%clk 0:02:48.1]} 16. Qg3 {[%clk 0:02:27.6]} 16... Ba6 {[%clk
0:02:30.6]} 17. Rfe1 {[%clk 0:02:19]} 17... Qc8 {[%clk 0:02:30.2]} 18. h4 {[%clk
0:02:15.7]} 18... f6 {[%clk 0:02:27]} 19. dxc5 {[%clk 0:02:03.7]} 19... bxc5
{[%clk 0:02:21.5]} 20. g5 {[%clk 0:01:54.9]} 20... fxe5 {[%clk 0:02:20.8]} 21.
fxe5 {[%clk 0:01:55.8]} 21... Nf5 {[%clk 0:02:20.9]} 22. Qg4 {[%clk 0:01:52.9]}
22... Rb8 {[%clk 0:02:18.5]} 23. b3 {[%clk 0:01:51.3]} 23... c4 {[%clk
0:02:15.8]} 24. Nxe4 {[%clk 0:01:47.8]} 24... cxb3 {[%clk 0:02:10.2]} 25. axb3
{[%clk 0:01:46.8]} 25... Bb7 {[%clk 0:02:11.1]} 26. Rxa7 {[%clk 0:01:29.7]}
26... Qc6 {[%clk 0:02:08.1]} 27. Ra4 {[%clk 0:01:21.2]} 27... Ra8 {[%clk
0:01:45.5]} 28. Rc4 {[%clk 0:01:14.6]} 28... Qd5 {[%clk 0:01:43.2]} 29. Rd1
{[%clk 0:01:13.2]} 29... Qb5 {[%clk 0:01:38.7]} 30. Rc7 {[%clk 0:00:55.6]} 30...
Qxb3 {[%clk 0:01:33]} 31. Rdd7 {[%clk 0:00:55.4]} 31... Ra1+ {[%clk 0:01:26.4]}
32. Kh2 {[%clk 0:00:51.9]} 32... Qb1 {[%clk 0:01:20]} 33. Ng3 {[%clk 0:00:19]}
33... Qh1+ {[%clk 0:01:13.3]} 34. Nxh1 {[%clk 0:00:18.4]} 34... Rxh1# {[%clk
0:01:14.2]} 0-1

[Event "*** Titled Tuesday Blitz"]
[Site "Chess.com"]
[Date "2020.04.07"]
[Round "9"]
[White "Shtembuliak"]
[Black "GeorgMeier"]
[Result "0-1"]
[WhiteElo "2858"]
[BlackElo "3012"]
[TimeControl "180+1"]
[EndTime "14:46:03 PDT"]
[Termination "GeorgMeier won by resignation"]

1. c4 {[%clk 0:03:00.9]} 1... b6 {[%clk 0:02:59.7]} 2. d4 {[%clk 0:02:57.6]}
2... e6 {[%clk 0:02:59.5]} 3. e4 {[%clk 0:02:55.8]} 3... Bb4+ {[%clk 0:02:58.4]}
4. Bd2 {[%clk 0:02:54.5]} 4... Bxd2+ {[%clk 0:02:57]} 5. Qxd2 {[%clk 0:02:54.9]}
5... d5 {[%clk 0:02:56.5]} 6. cxd5 {[%clk 0:02:48.5]} 6... exd5 {[%clk
0:02:57.4]} 7. exd5 {[%clk 0:02:40.9]} 7... Ne7 {[%clk 0:02:56.4]} 8. Bb5+
{[%clk 0:02:40]} 8... Nd7 {[%clk 0:02:45.4]} 9. Nc3 {[%clk 0:02:37.6]} 9... O-O
{[%clk 0:02:45.2]} 10. Nge2 {[%clk 0:02:32.6]} 10... Bb7 {[%clk 0:02:42.5]} 11.
O-O {[%clk 0:02:19.3]} 11... Nf6 {[%clk 0:02:40.4]} 12. Bd3 {[%clk 0:02:02.7]}
12... Nexd5 {[%clk 0:02:38.7]} 13. Rfe1 {[%clk 0:02:00.7]} 13... Re8 {[%clk
0:02:34]} 14. Ng3 {[%clk 0:01:59.3]} 14... Qd6 {[%clk 0:02:13.6]} 15. Bb5 {[%clk
0:01:52.3]} 15... Rxe1+ {[%clk 0:02:03.1]} 16. Rxe1 {[%clk 0:01:53.2]} 16... g6
{[%clk 0:01:47.5]} 17. Nge4 {[%clk 0:01:48.1]} 17... Nxe4 {[%clk 0:01:43.2]} 18.
Nxe4 {[%clk 0:01:49]} 18... Qf4 {[%clk 0:01:38.9]} 19. Qxf4 {[%clk 0:01:47]}
19... Nxf4 {[%clk 0:01:38.5]} 20. Nf6+ {[%clk 0:01:46.7]} 20... Kg7 {[%clk
0:01:38.4]} 21. Ne8+ {[%clk 0:01:40.4]} 21... Kf8 {[%clk 0:01:38.5]} 22. Nxc7
{[%clk 0:01:12.2]} 22... Rc8 {[%clk 0:01:33.7]} 23. Rc1 {[%clk 0:01:08]} 23...
Rd8 {[%clk 0:01:01.2]} 24. d5 {[%clk 0:00:36.7]} 24... Nxd5 {[%clk 0:00:45.9]}
25. Rd1 {[%clk 0:00:31.5]} 25... Ke7 {[%clk 0:00:44.7]} 26. Nxd5+ {[%clk
0:00:21.7]} 26... Bxd5 {[%clk 0:00:43.6]} 27. Rxd5 {[%clk 0:00:21.5]} 27... Rxd5
{[%clk 0:00:42.7]} 0-1

[Event "*** Titled Tuesday Blitz"]
[Site "Chess.com"]
[Date "2020.04.07"]
[Round "9"]
[White "Msb2"]
[Black "Gajuchess"]
[Result "1-0"]
[WhiteElo "2914"]
[BlackElo "2687"]
[TimeControl "180+1"]
[EndTime "14:46:08 PDT"]
[Termination "Msb2 won by resignation"]

1. d4 {[%clk 0:03:00.9]} 1... Nf6 {[%clk 0:02:59.9]} 2. c4 {[%clk 0:03:01.4]}
2... e6 {[%clk 0:03:00.5]} 3. Nc3 {[%clk 0:03:01.9]} 3... Bb4 {[%clk 0:03:01.1]}
4. e3 {[%clk 0:03:02.5]} 4... O-O {[%clk 0:03:00.9]} 5. Bd2 {[%clk 0:03:03.2]}
5... d5 {[%clk 0:03:01.5]} 6. Nf3 {[%clk 0:03:03.5]} 6... b6 {[%clk 0:03:01.2]}
7. cxd5 {[%clk 0:03:04]} 7... exd5 {[%clk 0:03:01]} 8. Rc1 {[%clk 0:03:04.7]}
8... Re8 {[%clk 0:02:52.6]} 9. Ne5 {[%clk 0:03:03.6]} 9... c5 {[%clk 0:02:48.7]}
10. Bb5 {[%clk 0:03:01.4]} 10... Re7 {[%clk 0:02:45.2]} 11. O-O {[%clk
0:02:59.7]} 11... a6 {[%clk 0:02:39.8]} 12. Bd3 {[%clk 0:02:57.8]} 12... c4
{[%clk 0:02:39.7]} 13. Bb1 {[%clk 0:02:57.7]} 13... b5 {[%clk 0:02:37.9]} 14. f4
{[%clk 0:02:56.1]} 14... Bd6 {[%clk 0:02:37.7]} 15. Qf3 {[%clk 0:02:54.8]} 15...
Bb7 {[%clk 0:02:35.2]} 16. Be1 {[%clk 0:02:52.3]} 16... b4 {[%clk 0:02:34]} 17.
Ne2 {[%clk 0:02:48.5]} 17... Ne4 {[%clk 0:02:34.2]} 18. Bxe4 {[%clk 0:02:45.1]}
18... dxe4 {[%clk 0:02:34]} 19. Qh3 {[%clk 0:02:45.8]} 19... f6 {[%clk
0:01:56.9]} 20. Nxc4 {[%clk 0:02:43.6]} 20... a5 {[%clk 0:01:47.2]} 21. Bg3
{[%clk 0:02:28.5]} 21... Ba6 {[%clk 0:01:30.8]} 22. f5 {[%clk 0:02:25]} 22...
Bxg3 {[%clk 0:01:30.6]} 23. Qxg3 {[%clk 0:02:25.6]} 23... Nd7 {[%clk 0:01:22.2]}
24. Nf4 {[%clk 0:02:18.5]} 24... Nf8 {[%clk 0:01:22.4]} 25. b3 {[%clk
0:02:12.7]} 25... Rc8 {[%clk 0:01:09.4]} 26. Rc2 {[%clk 0:02:12.1]} 26... a4
{[%clk 0:01:05.1]} 27. Rfc1 {[%clk 0:02:11.5]} 27... Rec7 {[%clk 0:01:03.9]} 28.
Nh5 {[%clk 0:02:05.3]} 28... Qe7 {[%clk 0:01:00.3]} 29. h4 {[%clk 0:01:46.7]}
29... Qf7 {[%clk 0:01:00]} 30. Nd6 {[%clk 0:01:37.8]} 30... Qe7 {[%clk
0:00:48.5]} 31. Nxf6+ {[%clk 0:01:23.5]} 31... Qxf6 {[%clk 0:00:47.1]} 32. Rxc7
{[%clk 0:01:23]} 32... Rd8 {[%clk 0:00:31.1]} 33. Rf7 {[%clk 0:01:19.5]} 33...
Qh6 {[%clk 0:00:32]} 34. Rcc7 {[%clk 0:01:15.5]} 34... g6 {[%clk 0:00:17.8]} 35.
Rg7+ {[%clk 0:01:15.9]} 1-0

[Event "*** Titled Tuesday Blitz"]
[Site "Chess.com"]
[Date "2020.04.07"]
[Round "9"]
[White "TregubovP"]
[Black "killer311"]
[Result "1-0"]
[WhiteElo "2471"]
[BlackElo "2325"]
[TimeControl "180+1"]
[EndTime "14:46:08 PDT"]
[Termination "TregubovP won by resignation"]

1. e4 {[%clk 0:03:00.9]} 1... c5 {[%clk 0:03:00]} 2. Nf3 {[%clk 0:03:00.6]} 2...
Nc6 {[%clk 0:03:00.3]} 3. c3 {[%clk 0:03:00.6]} 3... g6 {[%clk 0:02:57.8]} 4. d4
{[%clk 0:02:59.6]} 4... cxd4 {[%clk 0:02:55.1]} 5. cxd4 {[%clk 0:02:59.7]} 5...
Bg7 {[%clk 0:02:56]} 6. Nc3 {[%clk 0:02:59.4]} 6... d6 {[%clk 0:02:52]} 7. Bc4
{[%clk 0:02:49.7]} 7... Nf6 {[%clk 0:02:47]} 8. d5 {[%clk 0:02:45.4]} 8... Nb8
{[%clk 0:02:38.3]} 9. O-O {[%clk 0:02:44.1]} 9... O-O {[%clk 0:02:37.1]} 10. h3
{[%clk 0:02:43.7]} 10... Nbd7 {[%clk 0:02:35.9]} 11. Re1 {[%clk 0:02:44]} 11...
a6 {[%clk 0:02:35.3]} 12. a4 {[%clk 0:02:43]} 12... Nc5 {[%clk 0:02:30.2]} 13.
Rb1 {[%clk 0:02:27.7]} 13... a5 {[%clk 0:02:27.4]} 14. e5 {[%clk 0:02:23.6]}
14... dxe5 {[%clk 0:02:26.2]} 15. Nxe5 {[%clk 0:02:23.7]} 15... Bf5 {[%clk
0:02:26.3]} 16. Ra1 {[%clk 0:02:23.2]} 16... Nfe4 {[%clk 0:02:22.8]} 17. Nxe4
{[%clk 0:02:17.9]} 17... Bxe4 {[%clk 0:02:22.9]} 18. Bf4 {[%clk 0:02:10.3]}
18... Rc8 {[%clk 0:02:15.3]} 19. Rc1 {[%clk 0:02:03.9]} 19... Qb6 {[%clk
0:02:12.1]} 20. b3 {[%clk 0:01:47.1]} 20... Bf5 {[%clk 0:01:56.7]} 21. Ng4
{[%clk 0:01:33.6]} 21... Bxg4 {[%clk 0:01:48.1]} 22. hxg4 {[%clk 0:01:29.6]}
22... Rfe8 {[%clk 0:01:44.6]} 23. d6 {[%clk 0:01:13.6]} 23... exd6 {[%clk
0:01:40.6]} 24. Qxd6 {[%clk 0:01:13.3]} 24... Qxd6 {[%clk 0:01:35.7]} 25. Bxd6
{[%clk 0:01:13.3]} 25... Rxe1+ {[%clk 0:01:30.6]} 26. Rxe1 {[%clk 0:01:12.4]}
26... Bc3 {[%clk 0:01:28.3]} 27. Re7 {[%clk 0:01:11.3]} 27... Nxa4 {[%clk
0:01:20.2]} 28. Bxf7+ {[%clk 0:01:08.1]} 28... Kh8 {[%clk 0:01:20.5]} 29. bxa4
{[%clk 0:01:06.3]} 29... Bf6 {[%clk 0:01:20.4]} 30. Rxb7 {[%clk 0:00:59.9]}
30... Rc6 {[%clk 0:01:20.1]} 31. Bf4 {[%clk 0:00:52.3]} 31... g5 {[%clk
0:01:17.1]} 32. Be3 {[%clk 0:00:51.9]} 32... h6 {[%clk 0:01:13.1]} 33. Bd5
{[%clk 0:00:49.5]} 33... Rd6 {[%clk 0:01:11.5]} 34. Rb5 {[%clk 0:00:45.5]} 34...
Bc3 {[%clk 0:01:08.1]} 35. g3 {[%clk 0:00:45.5]} 35... Kg7 {[%clk 0:01:06]} 36.
Kg2 {[%clk 0:00:45.6]} 36... Kf6 {[%clk 0:01:06]} 37. Be4 {[%clk 0:00:45.1]}
37... Kg7 {[%clk 0:01:04.5]} 38. Rb7+ {[%clk 0:00:43.6]} 38... Kg8 {[%clk
0:01:03.3]} 39. Rb6 {[%clk 0:00:39.5]} 1-0

[Event "*** Titled Tuesday Blitz"]
[Site "Chess.com"]
[Date "2020.04.07"]
[Round "9"]
[White "fpawn"]
[Black "Walter_White_Poland"]
[Result "1-0"]
[WhiteElo "2311"]
[BlackElo "2133"]
[TimeControl "180+1"]
[EndTime "14:46:10 PDT"]
[Termination "fpawn won by resignation"]

1. e4 {[%clk 0:03:00.9]} 1... e5 {[%clk 0:02:44.3]} 2. Nf3 {[%clk 0:02:59.4]}
2... Nc6 {[%clk 0:02:44.2]} 3. d4 {[%clk 0:02:59.2]} 3... exd4 {[%clk
0:02:43.9]} 4. Nxd4 {[%clk 0:03:00.1]} 4... Bb4+ {[%clk 0:02:43.7]} 5. c3 {[%clk
0:02:59.4]} 5... Bc5 {[%clk 0:02:43.8]} 6. Be3 {[%clk 0:03:00]} 6... Bb6 {[%clk
0:02:43.6]} 7. Bc4 {[%clk 0:03:00]} 7... Nf6 {[%clk 0:02:42.5]} 8. Nd2 {[%clk
0:02:58.8]} 8... O-O {[%clk 0:02:41.7]} 9. O-O {[%clk 0:02:58.2]} 9... Re8
{[%clk 0:02:41.5]} 10. Qc2 {[%clk 0:02:58.1]} 10... Ne5 {[%clk 0:01:57.6]} 11.
Be2 {[%clk 0:02:57]} 11... d5 {[%clk 0:01:54.4]} 12. Rad1 {[%clk 0:02:46.7]}
12... Nfg4 {[%clk 0:01:17.8]} 13. exd5 {[%clk 0:02:23.7]} 13... Nxe3 {[%clk
0:01:11]} 14. fxe3 {[%clk 0:02:23.3]} 14... Qxd5 {[%clk 0:01:10.4]} 15. h3
{[%clk 0:01:51.2]} 15... Ng6 {[%clk 0:01:01.2]} 16. Bc4 {[%clk 0:01:49.7]} 16...
Qd7 {[%clk 0:00:50.1]} 17. Bxf7+ {[%clk 0:01:48.3]} 17... Qxf7 {[%clk
0:00:50.2]} 18. Rxf7 {[%clk 0:01:47.3]} 18... Kxf7 {[%clk 0:00:51.1]} 19. Qb3+
{[%clk 0:01:46.1]} 19... Ke7 {[%clk 0:00:25.1]} 20. Rf1 {[%clk 0:01:41.7]} 20...
Rf8 {[%clk 0:00:16.1]} 21. Qa3+ {[%clk 0:01:32.6]} 21... c5 {[%clk 0:00:15.4]}
22. Rxf8 {[%clk 0:01:31.2]} 22... Nxf8 {[%clk 0:00:14.4]} 23. N4b3 {[%clk
0:01:29.4]} 23... Ne6 {[%clk 0:00:13.4]} 24. Ne4 {[%clk 0:01:28]} 24... Bd7
{[%clk 0:00:13]} 25. Nbxc5 {[%clk 0:01:26.7]} 25... Nxc5 {[%clk 0:00:12.9]} 26.
Nxc5 {[%clk 0:01:25.6]} 26... Bxc5 {[%clk 0:00:11.5]} 27. Qxc5+ {[%clk
0:01:24.9]} 27... Kf7 {[%clk 0:00:10.1]} 28. Qd5+ {[%clk 0:01:23]} 28... Kf6
{[%clk 0:00:07.6]} 29. Qxb7 {[%clk 0:01:22.7]} 29... Rd8 {[%clk 0:00:07.5]} 30.
Qxa7 {[%clk 0:01:19.6]} 30... Be6 {[%clk 0:00:07.1]} 31. Qa5 {[%clk 0:01:12.8]}
31... Rd1+ {[%clk 0:00:05.6]} 32. Kh2 {[%clk 0:01:12.8]} 32... Rd2 {[%clk
0:00:05.3]} 33. Qb4 {[%clk 0:01:08.8]} 33... Bd5 {[%clk 0:00:03.9]} 34. Qf4+
{[%clk 0:01:08.7]} 34... Ke6 {[%clk 0:00:03.3]} 35. e4 {[%clk 0:01:08.6]} 1-0

[Event "*** Titled Tuesday Blitz"]
[Site "Chess.com"]
[Date "2020.04.07"]
[Round "9"]
[White "IMUltimateBeast"]
[Black "LiemLe"]
[Result "0-1"]
[WhiteElo "2665"]
[BlackElo "2949"]
[TimeControl "180+1"]
[EndTime "14:46:12 PDT"]
[Termination "LiemLe won on time"]

1. d4 {[%clk 0:03:00.9]} 1... Nf6 {[%clk 0:02:59.8]} 2. Bf4 {[%clk 0:02:58.3]}
2... d5 {[%clk 0:02:59.3]} 3. e3 {[%clk 0:02:59.2]} 3... c5 {[%clk 0:02:58.1]}
4. c3 {[%clk 0:02:59.7]} 4... Nc6 {[%clk 0:02:58.1]} 5. Nd2 {[%clk 0:03:00]}
5... Bf5 {[%clk 0:02:52.8]} 6. Ngf3 {[%clk 0:02:59.7]} 6... e6 {[%clk
0:02:52.9]} 7. Qb3 {[%clk 0:02:59.1]} 7... Qc8 {[%clk 0:02:50.1]} 8. h3 {[%clk
0:02:40.5]} 8... h6 {[%clk 0:02:48]} 9. Bb5 {[%clk 0:02:37]} 9... Be7 {[%clk
0:02:47.8]} 10. Ne5 {[%clk 0:02:36.6]} 10... Nd7 {[%clk 0:02:39.1]} 11. Nxd7
{[%clk 0:02:18.2]} 11... Qxd7 {[%clk 0:02:37.3]} 12. O-O {[%clk 0:02:19.1]}
12... a6 {[%clk 0:02:31.2]} 13. Be2 {[%clk 0:02:18.9]} 13... c4 {[%clk
0:02:20.3]} 14. Qd1 {[%clk 0:02:18.4]} 14... b5 {[%clk 0:02:20.8]} 15. a3 {[%clk
0:02:18.1]} 15... O-O {[%clk 0:02:20.4]} 16. g4 {[%clk 0:02:14.3]} 16... Bh7
{[%clk 0:02:19.1]} 17. Bg3 {[%clk 0:02:11.4]} 17... a5 {[%clk 0:02:11.2]} 18.
Rc1 {[%clk 0:01:36.5]} 18... b4 {[%clk 0:02:08.6]} 19. axb4 {[%clk 0:01:34.4]}
19... axb4 {[%clk 0:02:09.5]} 20. e4 {[%clk 0:01:32.3]} 20... bxc3 {[%clk
0:02:09.4]} 21. bxc3 {[%clk 0:01:32]} 21... Ra3 {[%clk 0:02:02.8]} 22. f4 {[%clk
0:00:56.2]} 22... Nxd4 {[%clk 0:02:02.2]} 23. cxd4 {[%clk 0:00:29.5]} 23...
Rxg3+ {[%clk 0:02:03.1]} 24. Kh2 {[%clk 0:00:29.3]} 24... Re3 {[%clk 0:01:56.3]}
25. e5 {[%clk 0:00:22.9]} 25... Rb8 {[%clk 0:01:51]} 26. Rf3 {[%clk 0:00:17.4]}
26... Ra3 {[%clk 0:01:41.5]} 27. Nb1 {[%clk 0:00:06.6]} 27... Rxf3 {[%clk
0:01:33.4]} 28. Bxf3 {[%clk 0:00:07.5]} 28... Rb2+ {[%clk 0:01:32.8]} 29. Kg1
{[%clk 0:00:06.2]} 29... Qa7 {[%clk 0:01:24.8]} 30. f5 {[%clk 0:00:05.5]} 30...
Bg5 {[%clk 0:01:21]} 31. Rc2 {[%clk 0:00:04.6]} 31... Rxc2 {[%clk 0:01:19]} 32.
Qxc2 {[%clk 0:00:04.8]} 32... Qxd4+ {[%clk 0:01:19.6]} 33. Kg2 {[%clk
0:00:03.5]} 33... Qxe5 {[%clk 0:01:19.2]} 34. Nc3 {[%clk 0:00:03.2]} 34... exf5
{[%clk 0:01:17.9]} 35. Qe2 {[%clk 0:00:02.5]} 35... Qxe2+ {[%clk 0:01:16.8]} 36.
Bxe2 {[%clk 0:00:02.6]} 36... fxg4 {[%clk 0:01:17.1]} 37. Kg3 {[%clk 0:00:01.5]}
37... d4 {[%clk 0:01:15.7]} 0-1

[Event "*** Titled Tuesday Blitz"]
[Site "Chess.com"]
[Date "2020.04.07"]
[Round "9"]
[White "albi1999"]
[Black "arctic_t00"]
[Result "0-1"]
[WhiteElo "2572"]
[BlackElo "2448"]
[TimeControl "180+1"]
[EndTime "14:46:12 PDT"]
[Termination "arctic_t00 won by resignation"]

1. d4 {[%clk 0:02:59.2]} 1... Nf6 {[%clk 0:02:59.4]} 2. c4 {[%clk 0:02:58.6]}
2... g6 {[%clk 0:02:58.4]} 3. Nc3 {[%clk 0:02:54.3]} 3... Bg7 {[%clk 0:02:58.8]}
4. e4 {[%clk 0:02:54.1]} 4... d6 {[%clk 0:02:58.5]} 5. h3 {[%clk 0:02:54.3]}
5... O-O {[%clk 0:02:58.3]} 6. Nf3 {[%clk 0:02:54.3]} 6... Na6 {[%clk
0:02:56.3]} 7. Be3 {[%clk 0:02:52.4]} 7... c5 {[%clk 0:02:54.4]} 8. d5 {[%clk
0:02:49]} 8... e6 {[%clk 0:02:54.1]} 9. Bd3 {[%clk 0:02:48.3]} 9... exd5 {[%clk
0:02:39.2]} 10. exd5 {[%clk 0:02:20.6]} 10... Nb4 {[%clk 0:02:38.5]} 11. Bb1
{[%clk 0:02:08.1]} 11... b5 {[%clk 0:02:38]} 12. cxb5 {[%clk 0:01:57.1]} 12...
Bb7 {[%clk 0:02:31.2]} 13. O-O {[%clk 0:01:54.4]} 13... Nfxd5 {[%clk 0:02:29]}
14. Bd2 {[%clk 0:01:52.3]} 14... a6 {[%clk 0:02:19.6]} 15. a3 {[%clk 0:01:47.6]}
15... axb5 {[%clk 0:02:16.6]} 16. Re1 {[%clk 0:01:28]} 16... Qd7 {[%clk
0:01:52.8]} 17. Qc1 {[%clk 0:01:14]} 17... Nxc3 {[%clk 0:01:41.1]} 18. Bxc3
{[%clk 0:01:12.4]} 18... Bxc3 {[%clk 0:01:27]} 19. Qxc3 {[%clk 0:01:01.9]} 19...
Nd5 {[%clk 0:01:27.1]} 20. Qd2 {[%clk 0:01:02]} 20... Nf6 {[%clk 0:01:24.4]} 21.
Qf4 {[%clk 0:00:53.9]} 21... Kg7 {[%clk 0:01:22.5]} 22. Rd1 {[%clk 0:00:50.4]}
22... Rfd8 {[%clk 0:01:14.6]} 23. Ba2 {[%clk 0:00:47.7]} 23... Ra4 {[%clk
0:01:12.1]} 24. Qg3 {[%clk 0:00:40.2]} 24... Nh5 {[%clk 0:01:10.1]} 25. Qg5
{[%clk 0:00:32.4]} 25... Bxf3 {[%clk 0:01:07.8]} 26. Re1 {[%clk 0:00:23.6]}
26... h6 {[%clk 0:01:03.9]} 0-1

[Event "*** Titled Tuesday Blitz"]
[Site "Chess.com"]
[Date "2020.04.07"]
[Round "9"]
[White "BillCoe"]
[Black "kallerotmg"]
[Result "0-1"]
[WhiteElo "2014"]
[BlackElo "2192"]
[TimeControl "180+1"]
[EndTime "14:46:12 PDT"]
[Termination "kallerotmg won by resignation"]

1. e4 {[%clk 0:03:00.9]} 1... c5 {[%clk 0:02:51.8]} 2. Nf3 {[%clk 0:03:01.1]}
2... a6 {[%clk 0:02:40.3]} 3. d4 {[%clk 0:03:01]} 3... cxd4 {[%clk 0:02:25.9]}
4. Nxd4 {[%clk 0:03:01.9]} 4... Nf6 {[%clk 0:02:26]} 5. Nc3 {[%clk 0:03:01.3]}
5... e5 {[%clk 0:02:24.1]} 6. Nf3 {[%clk 0:02:59.5]} 6... Bb4 {[%clk 0:02:20.6]}
7. Bd3 {[%clk 0:02:59.4]} 7... Bxc3+ {[%clk 0:02:10.8]} 8. bxc3 {[%clk
0:02:58.8]} 8... d6 {[%clk 0:02:05.7]} 9. O-O {[%clk 0:02:57.7]} 9... O-O {[%clk
0:02:03.1]} 10. Bg5 {[%clk 0:02:56.9]} 10... Be6 {[%clk 0:01:40]} 11. Qe2 {[%clk
0:02:53.8]} 11... Nbd7 {[%clk 0:01:36.9]} 12. h3 {[%clk 0:02:52.5]} 12... Qc7
{[%clk 0:01:33.9]} 13. Rab1 {[%clk 0:02:50]} 13... Rac8 {[%clk 0:01:29.2]} 14.
Rb2 {[%clk 0:02:45.5]} 14... b5 {[%clk 0:01:01]} 15. a4 {[%clk 0:02:34.6]} 15...
Qxc3 {[%clk 0:00:56]} 16. Rfb1 {[%clk 0:02:31.3]} 16... b4 {[%clk 0:00:48.1]}
17. Bxa6 {[%clk 0:02:28.3]} 17... Ra8 {[%clk 0:00:44.2]} 18. Bb5 {[%clk
0:02:24.5]} 18... h6 {[%clk 0:00:41.1]} 19. Bxf6 {[%clk 0:02:18.9]} 19... Nxf6
{[%clk 0:00:40.3]} 20. Rxb4 {[%clk 0:02:18.3]} 20... Rfc8 {[%clk 0:00:38.6]} 21.
R1b2 {[%clk 0:02:11.7]} 21... Rc7 {[%clk 0:00:35]} 22. Nd2 {[%clk 0:02:02.8]}
22... Qc5 {[%clk 0:00:33.2]} 23. c4 {[%clk 0:01:51.3]} 23... Rb7 {[%clk
0:00:33.3]} 24. Qd3 {[%clk 0:01:40.4]} 24... Nh5 {[%clk 0:00:31.2]} 25. Qe3
{[%clk 0:01:33.5]} 25... Nf4 {[%clk 0:00:28.4]} 26. Qxc5 {[%clk 0:01:29.4]}
26... dxc5 {[%clk 0:00:29.3]} 27. R4b3 {[%clk 0:01:27.6]} 27... Ne2+ {[%clk
0:00:29.2]} 28. Kf1 {[%clk 0:01:25.1]} 28... Nd4 {[%clk 0:00:28.8]} 29. Rg3
{[%clk 0:01:21.9]} 29... Rxa4 {[%clk 0:00:26.2]} 30. Nf3 {[%clk 0:01:10.1]}
30... Bxc4+ {[%clk 0:00:23.2]} 31. Bxc4 {[%clk 0:01:05.6]} 31... Ra1+ {[%clk
0:00:23.3]} 32. Ne1 {[%clk 0:00:54]} 32... Rxb2 {[%clk 0:00:24.2]} 0-1

[Event "*** Titled Tuesday Blitz"]
[Site "Chess.com"]
[Date "2020.04.07"]
[Round "9"]
[White "guillembaches"]
[Black "ahkashefi2800"]
[Result "1-0"]
[WhiteElo "2442"]
[BlackElo "2224"]
[TimeControl "180+1"]
[EndTime "14:46:16 PDT"]
[Termination "guillembaches won by checkmate"]

1. e4 {[%clk 0:03:00.9]} 1... c6 {[%clk 0:02:59.1]} 2. Nf3 {[%clk 0:03:00.3]}
2... d5 {[%clk 0:02:56.5]} 3. Nc3 {[%clk 0:03:00.7]} 3... dxe4 {[%clk
0:02:50.3]} 4. Nxe4 {[%clk 0:03:01.6]} 4... Nd7 {[%clk 0:02:48.1]} 5. Qe2 {[%clk
0:02:59.9]} 5... Ndf6 {[%clk 0:02:24.4]} 6. g3 {[%clk 0:02:58.7]} 6... Nxe4
{[%clk 0:02:23.8]} 7. Qxe4 {[%clk 0:02:59.6]} 7... Nf6 {[%clk 0:02:24.7]} 8. Qe2
{[%clk 0:02:59.3]} 8... Bf5 {[%clk 0:02:04.9]} 9. d3 {[%clk 0:02:59.3]} 9... e6
{[%clk 0:02:04.7]} 10. Bg2 {[%clk 0:02:56.3]} 10... Be7 {[%clk 0:02:01.9]} 11.
O-O {[%clk 0:02:54.8]} 11... O-O {[%clk 0:01:28.9]} 12. b3 {[%clk 0:02:54.5]}
12... a5 {[%clk 0:01:26.2]} 13. a4 {[%clk 0:02:54]} 13... h6 {[%clk 0:01:25.5]}
14. Bb2 {[%clk 0:02:53.7]} 14... Re8 {[%clk 0:01:25.4]} 15. Rad1 {[%clk
0:02:47.9]} 15... Bh7 {[%clk 0:01:23.8]} 16. Ne5 {[%clk 0:02:45.9]} 16... Nd7
{[%clk 0:01:00.9]} 17. Ng4 {[%clk 0:02:27.8]} 17... Bf5 {[%clk 0:00:58.8]} 18.
Ne3 {[%clk 0:02:20]} 18... Bg6 {[%clk 0:00:58]} 19. f4 {[%clk 0:02:15.8]} 19...
Bf6 {[%clk 0:00:57.2]} 20. d4 {[%clk 0:02:11.9]} 20... Qe7 {[%clk 0:00:10.6]}
21. Nc4 {[%clk 0:02:08.3]} 21... Rad8 {[%clk 0:00:11]} 22. Ne5 {[%clk 0:01:58]}
22... Bxe5 {[%clk 0:00:08.6]} 23. fxe5 {[%clk 0:01:56.1]} 23... Nf8 {[%clk
0:00:07.6]} 24. c4 {[%clk 0:01:51.2]} 24... Rd7 {[%clk 0:00:07.3]} 25. Bc3
{[%clk 0:01:49.7]} 25... Red8 {[%clk 0:00:07.6]} 26. Bxa5 {[%clk 0:01:48.4]}
26... Rc8 {[%clk 0:00:03.5]} 27. Bc3 {[%clk 0:01:47.6]} 27... Qa3 {[%clk
0:00:03]} 28. Qb2 {[%clk 0:01:45.8]} 28... Qxb2 {[%clk 0:00:02.6]} 29. Bxb2
{[%clk 0:01:46.7]} 29... Bc2 {[%clk 0:00:02.4]} 30. Rc1 {[%clk 0:01:34.2]} 30...
Bxb3 {[%clk 0:00:02.7]} 31. a5 {[%clk 0:01:34.3]} 31... Ra8 {[%clk 0:00:01.5]}
32. Rc3 {[%clk 0:01:33.2]} 32... Ba4 {[%clk 0:00:01.2]} 33. Ra3 {[%clk
0:01:32.6]} 33... Bc2 {[%clk 0:00:01.3]} 34. c5 {[%clk 0:01:30.9]} 34... Bh7
{[%clk 0:00:01.5]} 35. Rff3 {[%clk 0:01:28.4]} 35... Ng6 {[%clk 0:00:01.8]} 36.
Rfb3 {[%clk 0:01:28.1]} 36... Ne7 {[%clk 0:00:02.1]} 37. Rb6 {[%clk 0:01:27]}
37... Ra7 {[%clk 0:00:02.1]} 38. a6 {[%clk 0:01:25.8]} 38... Rxa6 {[%clk
0:00:01.7]} 39. Raxa6 {[%clk 0:01:25.1]} 39... bxa6 {[%clk 0:00:02.6]} 40. Rb8+
{[%clk 0:01:24.6]} 40... Rd8 {[%clk 0:00:02.8]} 41. Rxd8# {[%clk 0:01:24.6]} 1-0